fUSD/lending_fUSD_20250219
["ID","MTS","AMOUNT","RATE_DAILY","PERIOD"]
[353627111,1739968239348,-759.58182168,0.00013598,2]
[353627112,1739968239357,-1357.04181524,0.00013598,2]
[353627113,1739968239366,-273.09034464,0.00013598,2]
[353627114,1739968239375,-158.33750844,0.00013598,2]
[353627115,1739968239385,-20782.25373911,0.00013598,2]
[353627116,1739968239394,-1728.77058082,0.00013598,2]
[353627117,1739968239405,-5000.0,0.00013598,2]
[353627118,1739968239414,-2500.0,0.000136,2]
[353627119,1739968239424,-2500.0,0.000136,2]
[353627120,1739968239434,-1072.13,0.000136,2]
[353627121,1739968239444,-177.85860058,0.000136,2]
[353627122,1739968239454,-226.72502447,0.000136,2]
[353627123,1739968239464,-221.79436066,0.000136,2]
[353627124,1739968239474,-13107.0,0.00013671,2]
[353627125,1739968239484,-161.93285994,0.00013673,2]
[353627126,1739968239493,-152.55596777,0.00013673,2]
[353627127,1739968239503,-150.79988721,0.00013673,2]
[353627128,1739968239513,-160.34408763,0.00013673,2]
[353627129,1739968239522,-501.8163031,0.00013673,2]
[353627130,1739968239532,-355.05460249,0.00013673,2]
[353627131,1739968239541,-500.0,0.00013673,2]
[353627132,1739968239551,-161.56220668,0.00013673,2]
[353627133,1739968239560,-159.78780766,0.00013673,2]
[353627134,1739968239569,-1020.8546373,0.00013688,2]
[353627135,1739968239579,-219.2592428,0.00013688,2]
[353627136,1739968239589,-364.3846187,0.00013688,2]
[353627137,1739968239598,-2187.9509719,0.00013688,2]
[353627138,1739968239609,-475.5760406,0.00013688,2]
[353627139,1739968239619,-218.60718169,0.00013688,2]
[353627140,1739968239628,-966.4232131,0.00013689,2]
[353627141,1739968239638,-207.568457,0.00013689,2]
[353627142,1739968239648,-344.9558253,0.00013689,2]
[353627143,1739968239658,-2071.2905942,0.00013689,2]
[353627144,1739968239669,-450.21858,0.00013689,2]
[353627145,1739968239679,-40108.06307922,0.0001369,2]
[353627146,1739968239688,-695.7559255,0.00013691,2]
[353627147,1739968239698,-654.2303477,0.00013691,2]
[353627148,1739968239707,-911.9917888,0.00013691,2]
[353627149,1739968239717,-857.5603646,0.00013691,2]
[353627150,1739968239727,-195.8776712,0.00013691,2]
[353627151,1739968239736,-184.1868855,0.00013691,2]
[353627152,1739968239747,-325.527032,0.00013691,2]
[353627153,1739968239756,-306.0982387,0.00013691,2]
[353627154,1739968239766,-1954.6302165,0.00013691,2]
[353627155,1739968239775,-1837.9698388,0.00013691,2]
[353627156,1739968239784,-424.8611194,0.00013691,2]
[353627157,1739968239794,-399.5036589,0.00013691,2]
[353627158,1739968239804,-491.86,0.00013697,2]
[353627159,1739968239813,-300.0,0.00013697,2]
[353627160,1739968239823,-300.0,0.00013697,2]
[353627161,1739968239832,-1294.03,0.00013697,2]
[353627162,1739968239842,-300.0,0.00013697,2]
[353627163,1739968239851,-53454.4552526,0.00013697,2]
[353627164,1739968239860,-1142.0,0.00013698,2]
[353627165,1739968239870,-987306.15404713,0.00013698,2]
[353627166,1739968240550,-33272.79182286,0.00013199,3]
[353627167,1739968240559,-151.0,0.00013199,2]
[353627168,1739968240569,-291.5438348,0.00013688,2]
[353627169,1739968240579,-275.9988731,0.00013689,2]
[353627170,1739968240588,-260.4539115,0.00013691,2]
[353627171,1739968240597,-244.9089499,0.00013691,2]
[353627172,1739968240607,-168587.69716133,0.00013698,2]
[353627173,1739968240618,-351.85720649,0.00013698,2]
[353627176,1739968240836,-41183.48594007,0.00013698,2]
[353627177,1739968240904,-952.93133967,0.00013698,2]
[353627178,1739968240915,-321.5919,0.00013698,2]
[353627179,1739968240926,-2432.03611266,0.00013698,2]
[353627180,1739968240937,-20417.43,0.00013698,2]
[353627181,1739968240948,-4615.92382108,0.00013698,2]
[353627182,1739968240959,-5842.704872,0.00013698,2]
[353627183,1739968240969,-1466.43173063,0.00013698,2]
[353627184,1739968240980,-172971.23333752,0.00013698,2]
[353627185,1739968241007,-987.3062519,0.00013698,2]
[353627186,1739968241019,-379313.42310399,0.00013698,2]
[353627187,1739968241036,-27557.16416887,0.00013698,2]
[353627188,1739968241047,-322.310568,0.00013698,2]
[353627189,1739968241064,-6341.60486318,0.00013187,2]
[353627190,1739968241075,-696.84409306,0.00013187,2]
[353627191,1739968241087,-803.358,0.00013187,2]
[353627192,1739968241098,-4097.7999998,0.00013187,2]
[353627193,1739968241109,-883.79305964,0.00013187,2]
[353627194,1739968241120,-669.13760349,0.00013187,2]
[353627195,1739968241131,-695.34511427,0.00013187,2]
[353627196,1739968241189,-1438.19060449,0.00013187,2]
[353627197,1739968241198,-225.5968914,0.00013698,2]
[353627198,1739968241209,-787.36,0.00013698,2]
[353627199,1739968241221,-2295.0,0.00013698,2]
[353627205,1739968243193,-301.5070424,0.00010434,2]
[353627206,1739968243202,-258.96448051,0.00013698,2]
[353627207,1739968243261,-5022.75,0.00013698,2]
[353627208,1739968243272,-93145.27314458,0.00013698,2]
[353627209,1739968243284,-386436.21289298,0.00013698,2]
[353627210,1739968243320,-1443.469986,0.00013698,2]
[353627213,1739968246128,-301.5070424,0.00010968,2]
[353627214,1739968246138,-1030.0,0.00013595,2]
[353627215,1739968246148,-655.58855452,0.00013598,2]
[353627216,1739968246161,-14970.48478341,0.00013598,2]
[353627217,1739968246172,-450730.01196986,0.00013698,2]
[353627218,1739968246204,-1132503.00108029,0.00013698,2]
[353627224,1739968822176,222.0,0.000205,120]
[353627239,1739969427190,5957.52300094,0.0002,120]
[353627250,1739969432373,-897.43,0.00010608,2]
[353627251,1739969432383,-150.0,0.00010906,2]
[353627252,1739969432393,-280.48515366,0.00011199,2]
[353627253,1739969432403,-451.27454765,0.00011199,2]
[353627254,1739969432412,-627.90769561,0.00011205,2]
[353627255,1739969432422,-150.0,0.00011299,2]
[353627256,1739969432431,-451.27454764,0.00011545,2]
[353627257,1739969432441,-150.0,0.00011668,2]
[353627258,1739969432450,-1000.0,0.00011727,2]
[353627259,1739969432460,-23900.0,0.00011746,2]
[353627260,1739969432469,-243.72,0.00011764,2]
[353627261,1739969432478,-1500.0,0.00011767,2]
[353627262,1739969432488,-2937.76,0.00011912,2]
[353627263,1739969432497,-690.47769668,0.00011934,2]
[353627264,1739969432507,-27511.01,0.0001197,2]
[353627265,1739969432516,-151.35,0.00012002,2]
[353627266,1739969432525,-150.2,0.00012002,2]
[353627267,1739969432536,-152.31,0.00012002,2]
[353627268,1739969432545,-151.83,0.00012002,2]
[353627269,1739969432555,-401.103,0.00012069,2]
[353627270,1739969432564,-12762.3760064,0.00012097,2]
[353627271,1739969432574,-169.33,0.00012098,2]
[353627272,1739969432584,-346.4188521,0.00012148,2]
[353627273,1739969432593,-277.3193219,0.00012284,2]
[353627274,1739969432603,-1840.79,0.00012305,2]
[353627275,1739969432612,-1840.79,0.00012312,2]
[353627276,1739969432623,-1840.79,0.00012318,2]
[353627277,1739969432632,-1840.79,0.00012324,2]
[353627278,1739969432642,-429.13,0.00012327,2]
[353627279,1739969432652,-1840.79,0.00012331,2]
[353627280,1739969432662,-1840.79,0.00012337,2]
[353627281,1739969432672,-1840.79,0.00012344,2]
[353627282,1739969432681,-1840.79,0.0001235,2]
[353627283,1739969432691,-150.0,0.00012356,2]
[353627284,1739969432701,-1840.79,0.00012357,2]
[353627285,1739969432711,-1840.79,0.00012363,2]
[353627286,1739969432720,-1840.79,0.0001237,2]
[353627287,1739969432729,-1840.79,0.00012376,2]
[353627288,1739969432739,-150.52,0.00012378,2]
[353627289,1739969432749,-150.79,0.00012378,2]
[353627290,1739969432759,-151.75,0.00012378,2]
[353627291,1739969432768,-1840.79,0.00012383,2]
[353627292,1739969432778,-500.0,0.00012385,2]
[353627293,1739969432788,-390.93186054,0.00012386,2]
[353627294,1739969432799,-353.63085758,0.00012386,2]
[353627295,1739969432808,-1840.79,0.00012389,2]
[353627296,1739969432818,-1840.79,0.00012396,2]
[353627297,1739969432828,-250.0,0.00012398,2]
[353627298,1739969432837,-1840.79,0.00012402,2]
[353627299,1739969432847,-1840.79,0.00012409,2]
[353627300,1739969432856,-909.695968,0.00012415,2]
[353627301,1739969432868,-931.094032,0.00012415,2]
[353627302,1739969432878,-1840.79,0.00012421,2]
[353627303,1739969432888,-1840.79,0.00012428,2]
[353627304,1739969432897,-320.52131993,0.00012699,2]
[353627305,1739969432907,-500.0,0.00012699,2]
[353627306,1739969432917,-500.0,0.00012699,2]
[353627307,1739969432927,-500.0,0.00012699,2]
[353627308,1739969432936,-500.0,0.00012699,2]
[353627309,1739969432946,-500.0,0.00012699,2]
[353627310,1739969432955,-500.0,0.00012699,2]
[353627311,1739969432965,-500.0,0.00012699,2]
[353627312,1739969432975,-348.18331038,0.00012699,2]
[353627313,1739969432986,-151.81668962,0.00012699,2]
[353627314,1739969432996,-500.0,0.00012699,2]
[353627315,1739969433006,-500.0,0.00012699,2]
[353627316,1739969433015,-500.0,0.00012699,2]
[353627317,1739969433025,-500.0,0.00012699,2]
[353627318,1739969433035,-500.0,0.00012699,2]
[353627319,1739969433045,-500.0,0.00012699,2]
[353627320,1739969433055,-417.38,0.00012699,2]
[353627321,1739969433065,-500.0,0.00012699,2]
[353627322,1739969433076,-500.0,0.00012699,2]
[353627323,1739969433091,-500.0,0.00012699,2]
[353627324,1739969433102,-500.0,0.00012699,2]
[353627325,1739969433113,-500.0,0.00012699,2]
[353627326,1739969433124,-500.0,0.00012699,2]
[353627327,1739969433134,-500.0,0.00012699,2]
[353627328,1739969433143,-500.0,0.00012699,2]
[353627329,1739969433153,-500.0,0.00012699,2]
[353627330,1739969433163,-500.0,0.00012699,2]
[353627331,1739969433172,-500.0,0.00012699,2]
[353627332,1739969433182,-500.0,0.00012699,2]
[353627333,1739969433191,-500.0,0.00012699,2]
[353627334,1739969433201,-500.0,0.00012699,2]
[353627335,1739969433210,-500.0,0.00012699,2]
[353627336,1739969433219,-500.0,0.00012699,2]
[353627337,1739969433229,-500.0,0.00012699,2]
[353627338,1739969433238,-500.0,0.00012699,2]
[353627339,1739969433248,-500.0,0.00012699,2]
[353627340,1739969433259,-508.65,0.00012699,2]
[353627341,1739969433269,-500.0,0.00012699,2]
[353627342,1739969433279,-500.0,0.00012699,2]
[353627343,1739969433289,-500.0,0.00012699,2]
[353627344,1739969433298,-468.68,0.00012699,2]
[353627345,1739969433308,-876.71,0.00012849,2]
[353627346,1739969433318,-897.43,0.00012872,2]
[353627347,1739969433328,-986.71,0.00012959,2]
[353627348,1739969433338,-550.0,0.00013,2]
[353627349,1739969433347,-150.0,0.00013123,2]
[353627350,1739969433358,-300.0,0.00013123,2]
[353627351,1739969433367,-1973.29,0.00013123,2]
[353627352,1739969433378,-300.0,0.00013123,2]
[353627353,1739969433389,-439.19,0.00013123,2]
[353627354,1739969433398,-150.0,0.00013123,2]
[353627355,1739969433408,-150.0,0.00013123,2]
[353627356,1739969433416,-150.0,0.00013123,2]
[353627357,1739969433426,-150.0,0.00013123,2]
[353627358,1739969433437,-439.19,0.00013123,2]
[353627359,1739969433447,-150.0,0.00013123,2]
[353627360,1739969433457,-439.19,0.00013123,2]
[353627361,1739969433467,-150.0,0.00013123,2]
[353627362,1739969433478,-150.0,0.00013123,2]
[353627363,1739969433487,-439.19,0.00013123,2]
[353627364,1739969433496,-150.0,0.00013123,2]
[353627365,1739969433506,-150.0,0.00013123,2]
[353627366,1739969433515,-150.0,0.00013123,2]
[353627367,1739969433524,-439.19,0.00013123,2]
[353627368,1739969433532,-150.0,0.00013123,2]
[353627369,1739969433542,-150.0,0.00013123,2]
[353627370,1739969433552,-642.29,0.00013123,2]
[353627371,1739969433561,-150.0,0.00013123,2]
[353627372,1739969433570,-150.0,0.00013156,2]
[353627373,1739969433580,-1000.0,0.00013192,2]
[353627374,1739969433589,-491.78,0.00013199,2]
[353627375,1739969433599,-871.8429306,0.00013424,2]
[353627376,1739969433608,-1000.0,0.00013424,3]
[353627377,1739969433618,-642.90662928,0.000135,2]
[353627378,1739969433628,-1274.0,0.00013569,2]
[353627379,1739969433638,-2025.0,0.00013569,2]
[353627380,1739969433647,-639.0,0.00013569,2]
[353627381,1739969433656,-150.0,0.00013569,2]
[353627382,1739969433666,-569.0,0.00013569,2]
[353627383,1739969433676,-1787.0,0.00013569,2]
[353627384,1739969433686,-784.0,0.00013569,2]
[353627385,1739969433695,-1424.0,0.00013569,2]
[353627386,1739969433705,-1266.0,0.00013569,2]
[353627387,1739969433715,-908.0,0.00013569,2]
[353627388,1739969433725,-539.0,0.00013569,2]
[353627389,1739969433735,-4030.0,0.00013569,2]
[353627390,1739969433744,-1009.0,0.00013569,2]
[353627391,1739969433754,-3918.0,0.00013569,2]
[353627392,1739969433764,-150.0,0.00013569,2]
[353627393,1739969433774,-432.31286095,0.0001357,2]
[353627394,1739969433784,-500.0,0.00013588,2]
[353627395,1739969433793,-2000.0,0.00013588,2]
[353627396,1739969433804,-500.0,0.00013588,2]
[353627397,1739969433813,-200.0,0.00013588,2]
[353627398,1739969433823,-6728.0142,0.00013591,2]
[353627399,1739969433833,-162.48493836,0.00013597,2]
[353627400,1739969433843,-179.32244399,0.00013598,2]
[353627401,1739969433852,-2601.36869508,0.00013598,2]
[353627402,1739969433863,-162.59238172,0.00013598,2]
[353627403,1739969433872,-303.40878448,0.00013598,2]
[353627404,1739969433882,-20782.25373911,0.00013598,2]
[353627405,1739969433892,-3543.9891,0.00013598,2]
[353627406,1739969433902,-350.5545,0.00013598,2]
[353627407,1739969433912,-1349.4455,0.00013598,2]
[353627408,1739969433923,-1363.76000917,0.00013598,2]
[353627409,1739969433936,-3636.23999083,0.00013598,2]
[353627410,1739969433946,-2601.368695,0.00013598,2]
[353627411,1739969433955,-2601.368695,0.00013598,2]
[353627412,1739969433965,-2601.368695,0.00013599,2]
[353627413,1739969433976,-2601.368695,0.00013599,2]
[353627414,1739969433986,-2601.368695,0.00013599,2]
[353627415,1739969433995,-2601.368695,0.00013599,2]
[353627416,1739969434005,-2601.368695,0.000136,2]
[353627417,1739969434015,-2601.368695,0.000136,2]
[353627418,1739969434025,-158.33750844,0.000136,2]
[353627419,1739969434036,-179.32244398,0.000136,2]
[353627420,1739969434045,-600.0,0.000136,2]
[353627421,1739969434054,-2601.368695,0.000136,2]
[353627422,1739969434064,-273.09034464,0.000136,2]
[353627423,1739969434073,-759.58182168,0.000136,2]
[353627424,1739969434084,-1357.04181524,0.000136,2]
[353627425,1739969434096,-2305.2233248,0.000136,2]
[353627426,1739969434105,-2318.84449539,0.00013671,2]
[353627427,1739969434118,-10788.15550461,0.00013671,2]
[353627428,1739969434128,-162.59238168,0.0001368,2]
[353627429,1739969434138,-887.21151165,0.00013688,2]
[353627430,1739969434148,-935.5186839,0.00013688,2]
[353627431,1739969434158,-448.3041252,0.00013688,2]
[353627432,1739969434169,-289.9136829,0.00013688,2]
[353627433,1739969434179,-2508.4746233,0.00013688,2]
[353627434,1739969434189,-228.450142,0.00013688,2]
[353627435,1739969434199,-299.4507785,0.00013688,2]
[353627436,1739969434209,-246.239,0.00013689,2]
[353627437,1739969434220,-5307.731,0.0001369,2]
[353627438,1739969434231,-2012.04,0.0001369,2]
[353627439,1739969434242,-1000.0,0.00013691,2]
[353627440,1739969434252,-1000.0,0.00013691,2]
[353627441,1739969434261,-1000.0,0.00013691,2]
[353627442,1739969434466,-1000.0,0.00013691,2]
[353627443,1739969434540,-1000.0,0.00013691,2]
[353627444,1739969434549,-1000.0,0.00013691,2]
[353627445,1739969434559,-1000.0,0.00013691,2]
[353627446,1739969434569,-1000.0,0.00013691,2]
[353627447,1739969434578,-1000.0,0.00013691,2]
[353627448,1739969434588,-1000.0,0.00013691,2]
[353627449,1739969434598,-888.7591221,0.00013691,2]
[353627450,1739969434608,-841.9995603,0.00013691,2]
[353627451,1739969434617,-425.8967646,0.00013691,2]
[353627452,1739969434627,-403.4894041,0.00013691,2]
[353627453,1739969434636,-274.1084042,0.00013691,2]
[353627454,1739969434646,-258.3031255,0.00013691,2]
[353627455,1739969434655,-242.4978468,0.00013691,2]
[353627456,1739969434665,-2371.7196412,0.00013691,2]
[353627457,1739969434675,-2234.9646591,0.00013691,2]
[353627458,1739969434684,-2098.2096771,0.00013691,2]
[353627459,1739969434693,-215.9956827,0.00013691,2]
[353627460,1739969434702,-203.5412234,0.00013691,2]
[353627461,1739969434712,-191.0867641,0.00013691,2]
[353627462,1739969434721,-283.1255641,0.00013691,2]
[353627463,1739969434731,-266.8003498,0.00013691,2]
[353627464,1739969434741,-250.4751355,0.00013691,2]
[353627465,1739969434751,-7710.49223983,0.00013696,2]
[353627466,1739969434760,-500.0,0.00013697,2]
[353627467,1739969434770,-598.61085905,0.00013697,2]
[353627468,1739969434780,-1042.0,0.00013698,2]
[353627469,1739969434790,-23750.87864925,0.00013698,2]
[353627470,1739969434839,-6904.89003891,0.00013698,2]
[353627471,1739969434857,-2000.0,0.00013698,2]
[353627640,1739969438264,-851.70702,0.00013698,2]
[353627641,1739969438432,-636.0,0.00013698,2]
[353627642,1739969438471,-4157.71290327,0.00013698,2]
[353627868,1739969440941,-10236.91564311,0.00013698,2]
[353627873,1739969440976,-250.70949497,0.00013698,2]
[353627879,1739969441027,-150.0,0.00013569,2]
[353627881,1739969441036,-5291.00249838,0.00013698,2]
[353627883,1739969441048,-4344.94452145,0.00013698,2]
[353627886,1739969441059,-358.24756119,0.00013698,2]
[353627888,1739969441069,-69837.49773098,0.00013698,2]
[353627892,1739969441102,-27259.0,0.00013698,2]
[353628178,1739969443779,-168.261,0.00013569,2]
[353628180,1739969443788,-943.0,0.00013698,2]
[353628182,1739969443798,-18.58399985,0.00013698,2]
[353628187,1739969443836,-397354.05795343,0.00013698,2]
[353628190,1739969443847,-730.9693351,0.00013698,2]
[353628202,1739969443955,-38966.91141844,0.00013698,2]
[353628204,1739969443971,-154.199655,0.00013698,2]
[353628206,1739969443980,-154.554946,0.00013698,2]
[353628208,1739969443990,-156.69585,0.00013698,2]
[353628210,1739969444000,-168.255689,0.00013698,2]
[353628212,1739969444010,-167.497443,0.00013698,2]
[353628214,1739969444020,-168.255689,0.00013698,2]
[353628216,1739969444030,-167.497438,0.00013698,2]
[353628218,1739969444039,-168.255689,0.00013698,2]
[353628220,1739969444049,-167.497439,0.00013698,2]
[353628222,1739969444059,-161.55557,0.00013698,2]
[353628224,1739969444068,-156.288087,0.00013698,2]
[353628226,1739969444078,-162.254332,0.00013698,2]
[353628228,1739969444090,-808.090152,0.00013698,2]
[353628230,1739969444099,-154.098912,0.00013698,2]
[353628232,1739969444109,-933.754664,0.00013698,2]
[353628234,1739969444118,-151.0,0.00013698,2]
[353628236,1739969444127,-151.0,0.00013698,2]
[353628239,1739969444137,-151.0,0.00013698,2]
[353628242,1739969444146,-151.0,0.00013698,2]
[353628245,1739969444155,-151.0,0.00013698,2]
[353628247,1739969444166,-161.151243,0.00013698,2]
[353628249,1739969444176,-161.281657,0.00013698,2]
[353628251,1739969444184,-161.563548,0.00013698,2]
[353628253,1739969444193,-207.566227,0.00013698,2]
[353628255,1739969444203,-213.681326,0.00013698,2]
[353628257,1739969444212,-197.212959,0.00013698,2]
[353628260,1739969444221,-184.781149,0.00013698,2]
[353628262,1739969444230,-191.188552,0.00013698,2]
[353628265,1739969444239,-185.717147,0.00013698,2]
[353628268,1739969444249,-151.0,0.00013698,2]
[353628270,1739969444258,-151.0,0.00013698,2]
[353628272,1739969444267,-161.151243,0.00013698,2]
[353628274,1739969444276,-1885.671,0.00013698,2]
[353628276,1739969444285,-161.563546,0.00013698,2]
[353628278,1739969444294,-151.0,0.00013698,2]
[353628281,1739969444303,-151.0,0.00013698,2]
[353628284,1739969444312,-151.0,0.00013698,2]
[353628287,1739969444322,-151.0,0.00013698,2]
[353628290,1739969444331,-151.0,0.00013698,2]
[353628293,1739969444340,-151.0,0.00013698,2]
[353628296,1739969444349,-151.0,0.00013698,2]
[353628299,1739969444359,-151.0,0.00013698,2]
[353628302,1739969444368,-151.0,0.00013698,2]
[353628305,1739969444376,-165.950669,0.00013698,2]
[353628308,1739969444386,-151.0,0.00013698,2]
[353628311,1739969444396,-151.0,0.00013698,2]
[353628314,1739969444406,-151.0,0.00013698,2]
[353628316,1739969444415,-151.0,0.00013698,2]
[353628318,1739969444424,-151.0,0.00013698,2]
[353628320,1739969444434,-161.18732624,0.00013698,2]
[353628322,1739969444443,-261.803828,0.00013698,2]
[353628324,1739969444452,-151.0,0.00013698,2]
[353628326,1739969444461,-151.0,0.00013698,2]
[353628328,1739969444471,-151.0,0.00013698,2]
[353628330,1739969444481,-151.0,0.00013698,2]
[353628332,1739969444490,-151.0,0.00013698,2]
[353628334,1739969444499,-151.0,0.00013698,2]
[353628336,1739969444509,-151.0,0.00013698,2]
[353628338,1739969444518,-151.0,0.00013698,2]
[353628340,1739969444527,-151.0,0.00013698,2]
[353628342,1739969444536,-151.0,0.00013698,2]
[353628344,1739969444546,-151.0,0.00013698,2]
[353628346,1739969444555,-151.0,0.00013698,2]
[353628348,1739969444564,-151.0,0.00013698,2]
[353628350,1739969444573,-151.0,0.00013698,2]
[353628352,1739969444582,-151.0,0.00013698,2]
[353628354,1739969444593,-151.0,0.00013698,2]
[353628356,1739969444603,-151.0,0.00013698,2]
[353628358,1739969444612,-151.0,0.00013698,2]
[353628360,1739969444621,-151.0,0.00013698,2]
[353628362,1739969444631,-151.0,0.00013698,2]
[353628364,1739969444640,-151.0,0.00013698,2]
[353628366,1739969444650,-151.0,0.00013698,2]
[353628368,1739969444660,-151.0,0.00013698,2]
[353628370,1739969444670,-151.0,0.00013698,2]
[353628372,1739969444679,-151.0,0.00013698,2]
[353628374,1739969444689,-151.0,0.00013698,2]
[353628376,1739969444699,-151.0,0.00013698,2]
[353628378,1739969444709,-151.0,0.00013698,2]
[353628379,1739969444718,-151.0,0.00013698,2]
[353628380,1739969444728,-292.887622,0.00013698,2]
[353628381,1739969444738,-151.0,0.00013698,2]
[353628382,1739969444748,-151.0,0.00013698,2]
[353628383,1739969444758,-151.0,0.00013698,2]
[353628384,1739969444767,-151.0,0.00013698,2]
[353628385,1739969444777,-151.0,0.00013698,2]
[353628386,1739969444786,-151.0,0.00013698,2]
[353628387,1739969444796,-151.0,0.00013698,2]
[353628389,1739969444807,-151.0,0.00013698,2]
[353628391,1739969444816,-151.0,0.00013698,2]
[353628393,1739969444825,-151.0,0.00013698,2]
[353628395,1739969444835,-155.344077,0.00013698,2]
[353628397,1739969444844,-155.344077,0.00013698,2]
[353628399,1739969444854,-155.344077,0.00013698,2]
[353628401,1739969444864,-151.0,0.00013698,2]
[353628403,1739969444873,-151.0,0.00013698,2]
[353628405,1739969444882,-151.0,0.00013698,2]
[353628407,1739969444892,-155.344077,0.00013698,2]
[353628409,1739969444902,-155.344077,0.00013698,2]
[353628411,1739969444911,-155.344077,0.00013698,2]
[353628413,1739969444920,-151.0,0.00013698,2]
[353628415,1739969444929,-151.0,0.00013698,2]
[353628417,1739969444939,-194.981468,0.00013698,2]
[353628419,1739969444948,-500.0,0.00013698,2]
[353628421,1739969444958,-501.26301027,0.00013698,2]
[353628423,1739969444967,-643.30194761,0.00013698,2]
[353628425,1739969444976,-378.48701001,0.00013698,2]
[353628427,1739969444987,-500.0,0.00013698,2]
[353628429,1739969444996,-500.0,0.00013698,2]
[353628431,1739969445005,-500.0,0.00013698,2]
[353628433,1739969445014,-500.0,0.00013698,2]
[353628435,1739969445023,-500.0,0.00013698,2]
[353628437,1739969445034,-620.48906351,0.00013698,2]
[353628439,1739969445043,-500.0,0.00013698,2]
[353628441,1739969445053,-633.38554389,0.00013698,2]
[353628443,1739969445063,-500.0,0.00013698,2]
[353628445,1739969445072,-501.70594703,0.00013698,2]
[353628447,1739969445082,-577.626677,0.00013698,2]
[353628449,1739969445095,-577.626677,0.00013698,2]
[353628451,1739969445106,-577.626677,0.00013698,2]
[353628453,1739969445115,-577.626677,0.00013698,2]
[353628455,1739969445125,-577.626677,0.00013698,2]
[353628457,1739969445136,-577.626677,0.00013698,2]
[353628459,1739969445145,-577.626677,0.00013698,2]
[353628461,1739969445154,-577.626677,0.00013698,2]
[353628463,1739969445165,-500.0,0.00013698,2]
[353628465,1739969445174,-500.0,0.00013698,2]
[353628467,1739969445183,-500.0,0.00013698,2]
[353628469,1739969445192,-500.0,0.00013698,2]
[353628471,1739969445201,-500.0,0.00013698,2]
[353628473,1739969445210,-534.43843715,0.00013698,2]
[353628475,1739969445219,-500.74209169,0.00013698,2]
[353628477,1739969445229,-500.0,0.00013698,2]
[353628479,1739969445239,-500.0,0.00013698,2]
[353628481,1739969445248,-152.108115,0.00013698,2]
[353628483,1739969445257,-500.0,0.00013698,2]
[353628485,1739969445267,-500.0,0.00013698,2]
[353628487,1739969445276,-477.90446196,0.00013698,2]
[353628489,1739969445285,-300.0,0.00013698,2]
[353628491,1739969445295,-150.648981,0.00013698,2]
[353628492,1739969445305,-500.0,0.00013698,2]
[353628495,1739969445315,-156.3611,0.00013698,2]
[353628496,1739969445324,-500.0,0.00013698,2]
[353628498,1739969445333,-500.0,0.00013698,2]
[353628500,1739969445342,-500.0,0.00013698,2]
[353628502,1739969445352,-470.8625883,0.00013698,2]
[353628504,1739969445370,-500.0,0.00013698,2]
[353628507,1739969445379,-500.0,0.00013698,2]
[353628508,1739969445388,-500.0,0.00013698,2]
[353628511,1739969445398,-501.67340371,0.00013698,2]
[353628512,1739969445408,-500.0,0.00013698,2]
[353628514,1739969445418,-500.0,0.00013698,2]
[353628516,1739969445427,-291.70620789,0.00013698,2]
[353628518,1739969445437,-500.0,0.00013698,2]
[353628520,1739969445446,-500.0,0.00013698,2]
[353628522,1739969445455,-156.346116,0.00013698,2]
[353628524,1739969445464,-500.0,0.00013698,2]
[353628527,1739969445474,-500.0,0.00013698,2]
[353628528,1739969445484,-500.0,0.00013698,2]
[353628530,1739969445493,-500.0,0.00013698,2]